Cogmind - Beta 15 @@@ ROGUE MODE // 2025.05.07 @ 18:25:53 Player: Aklangi Result: Destroyed by 43-UAE(R) with Subdweller Beam Cannon Performance ------------- Evolutions (0) 0 Regions Visited (3) 600 Robots Destroyed (12) 60 Value Destroyed (238) 238 Prototype IDs (2) 40 Alien Tech Used (0) 0 Bonus (0) 0 TOTAL SCORE: 938 Bonus ------- None Cogmind --------- Core Integrity 0/250 Matter 290/300 Energy 78/100 System Corruption 0% Temperature Cool (9) Movement Core (100) Ox1 Location -10/Subcaves Parts ------- > --- POWER (1) -------- (None) > --- PROPULSION (2) --- (None) > --- UTILITY (2) ------ Small Storage Unit > --- WEAPON (2) ------- (None) > --- INVENTORY (8) ---- Medium Storage Unit Small Laser Peak State ------------ > --- POWER ------------ Ion Engine > --- PROPULSION ------- Aluminum Leg Aluminum Leg > --- UTILITY ---------- Improved Heat Sink Small Storage Unit > --- WEAPON ----------- Small Laser Particle Gun > --- INVENTORY -------- Aluminum Leg Medium Storage Unit Mining Laser [Rating: 10] Favorites ----------- Power Ion Engine Engine Ion Engine Power Core Light Nuclear Core Propulsion Aluminum Leg Leg Aluminum Leg Utility Small Storage Unit Device Structural Scanner Storage Small Storage Unit Weapon Particle Gun Energy Gun Particle Gun Ballistic Gun Light Assault Rifle Special Weapon Mining Laser Build | -11 -10 -10 -10 ------- Run | Yrd Mat Min Sub Slots Evolved . | . . . . Power . | . . . . Propulsion . | . . . . Utility . | . . . . Weapon . | . . . . Parts Attached 16 | 6 . 8 2 Power 3 | 1 . 2 . Engine 2 | 1 . 1 . Core 1 | . . 1 . Reactor . | . . . . Propulsion 5 | 2 . 3 . Treads . | . . . . Leg 5 | 2 . 3 . Wheel . | . . . . Hover . | . . . . Flight . | . . . . Utility 3 | 1 . 2 . Device 2 | . . 2 . Storage 1 | 1 . . . Processor . | . . . . Hackware . | . . . . Protection . | . . . . Artifact . | . . . . Weapon 5 | 2 . 1 2 Energy Gun 2 | 1 . 1 . Energy Cannon . | . . . . Ballistic Gun 2 | 1 . . 1 Ballistic Cannon . | . . . . Launcher . | . . . . Special Weapon 1 | . . . 1 Impact Weapon . | . . . . Slashing Weapon . | . . . . Piercing Weapon . | . . . . Special Melee Weapon . | . . . . Unidentified Prototypes . | . . . . Parts Lost 12 | . . 2 10 Power 2 | . . 1 1 Propulsion 4 | . . . 4 Utility 2 | . . . 2 Weapon 4 | . . 1 3 Highest Loss Streak 5 | . . 2 5 To Critical Strikes . | . . . . Average Backups 4 | . 2 3 5 Power . | . 1 . . Propulsion 1 | . . . 2 Utility 1 | . . 1 1 Weapon 1 | . . 1 1 Tool/Special . | . . . . Unused Backups 1 | . . . 1 Power . | . . . . Propulsion . | . . . . Utility 1 | . . . 1 Weapon . | . . . . Tool/Special . | . . . . Average Slot Usage (%) 87 | . 85 96 79 Engine 12 | . 14 12 11 Leg 26 | . 28 28 24 Device 5 | . . 11 2 Storage 14 | . 14 14 14 Energy Gun 18 | . 14 25 12 Ballistic Gun 7 | . 14 1 12 Peak Build Rating 10 | 6 6 10 10 Average Rating 7 | 4 6 8 6 On Entrance 5 | . 6 6 8 Naked Turns . | . . . . Heaviest Build 15 | 12 12 15 15 Greatest Support 20 | 20 20 20 20 Greatest Overweight (x) 2 | 1 . . 2 Average Overweight (x) . | . . . . Largest Inventory Capacity 8 | 8 8 8 8 Average Capacity 7 | 6 8 8 8 Most Carried 6 | 1 3 6 6 Average Carried 4 | . 2 3 5 Final Capacity 8 | 8 8 8 8 Final Carried 5 | 1 3 5 2 Class Distribution -------------------- 77% | Mutant 22% | Scavenger-Mutant Dominant Class ---------------- Mutant | -10/Materials Mutant | -10/Mines Scavenger-Mutant | -10/Subcaves Resources | -11 -10 -10 -10 ----------- Run | Yrd Mat Min Sub Matter Collected 361 | 117 11 218 15 Remotely . | . . . . Salvage Created 327 | . 52 230 45 Parts 26 | . 8 14 4 Haulers Intercepted . | . . . . Recyclers Shooed 3 | . 1 2 . Parts Field Recycled . | . . . . Retrieved Matter . | . . . . Parts Self-Destructed 5 | . . . 5 Prevented . | . . . . Kills | -11 -10 -10 -10 ------- Run | Yrd Mat Min Sub Combat Hostiles Destroyed 11 | . 4 4 3 Guns 11 | . 4 4 3 Classes Destroyed 3 | . 1 2 . Recycler 1 | . . 1 . Swarmer 7 | . 4 . 3 Grunt 4 | . . 4 . Best Kill Streak 3 | . 3 2 3 Combat Bots Only 3 | . 3 2 3 Max Kills in Single Turn 1 | . 1 1 1 Gunslinging . | . . . . Exploded . | . . . . Melee . | . . . . Uniques/NPCs Destroyed . | . . . . Combat | -11 -10 -10 -10 -------- Run | Yrd Mat Min Sub Hostile Shots Fired 112 | . 28 36 48 Missed 30 | . 8 7 15 Hits 82 | . 20 29 33 Projectile 82 | . 20 29 33 Critical Strikes 2 | . . 2 . Damage Taken 1299 | . 150 397 752 Core 276 | . 15 15 246 Absorbed by Shields . | . . . . Core Remaining (%) 100 | 100 . . . Volleys Fired 45 | . 10 23 12 Largest 2 | . 2 2 2 Hottest 105 | . 60 105 105 Shots Fired 77 | . 20 40 17 Gun 76 | . 20 40 16 Cannon . | . . . . Launcher . | . . . . Special 1 | . . . 1 Kinetic 28 | . 10 11 7 Thermal 49 | . 10 29 10 Explosive . | . . . . Electromagnetic . | . . . . Robot Hit Streak 9 | . 5 9 7 Robot Miss Streak 5 | . 5 3 2 Penetration Max . | . . . . Secondary Targets 2 | . . 1 1 Max Gunslinging Chain 1 | . . 1 1 Shots Hit Robots 46 | . 9 27 10 Core Hits 23 | . 6 12 5 Critical Kills . | . . . . Critical Parts Destroyed . | . . . . Critical Strikes . | . . . . Melee Attacks . | . . . . Impact . | . . . . Slashing . | . . . . Piercing . | . . . . Sneak Attacks . | . . . . Combat Hostiles . | . . . . Follow-up Attacks . | . . . . Damage Inflicted 517 | . 80 335 102 Guns 515 | . 78 335 102 Cannons . | . . . . Explosions . | . . . . Melee . | . . . . Ramming 2 | . 2 . . Kinetic 148 | . 46 69 33 Thermal 367 | . 32 266 69 Explosive . | . . . . Electromagnetic . | . . . . Impact . | . . . . Slashing . | . . . . Piercing . | . . . . Highest Corruption . | . . . . Average Corruption . | . . . . Corruption Purged . | . . . . Corruption Blocked . | . . . . Overload Shots . | . . . . Overflow Damage . | . . . . Projectiles . | . . . . Explosions . | . . . . Melee . | . . . . Knockbacks . | . . . . Impact . | . . . . Kinetic . | . . . . Secondary . | . . . . Self-Inflicted Damage . | . . . . Shots . | . . . . Rammed . | . . . . Targets Rammed 2 | . 2 . . Kicked 2 | . 2 . . Crushed . | . . . . Highest Temperature 340 | . 40 340 . Average Temperature 98 | . 19 118 . Received Heat Transfer 483 | . . 258 225 Siege Activations . | . . . . Martial Activations . | . . . . Shielding Activations . | . . . . Robots Disrupted . | . . . . Combat Hostiles . | . . . . Robots Corrupted . | . . . . Combat Hostiles . | . . . . Parts Fried . | . . . . Impact Corruptions . | . . . . Robots Melted . | . . . . Combat Hostiles . | . . . . Parts Melted 1 | . . . 1 Heat Transferred 855 | . 75 619 161 Parts Sabotaged . | . . . . Parts Stolen . | . . . . Parts Stripped . | . . . . Power Chain Reactions . | . . . . Alert | -11 -10 -10 -10 ------- Run | Yrd Mat Min Sub Maximum Alert Level . | . . . . Low Security (%) 100 | 100 100 100 . Level 1 . | . . . . Level 2 . | . . . . Level 3 . | . . . . Level 4 . | . . . . Level 5 . | . . . . High Security . | . . . . Max Security . | . . . . Peak Influence 91 | . 91 77 . Initial 27 | . . 27 . Average 17 | . 29 13 . Influence Increases 296 | . 121 105 70 Destroy 0b10 Robot/C 220 | . 80 80 60 Destroy 0b10 Robot/NC 5 | . . 5 . Destroy Leader 50 | . 20 20 10 Successful Hack 6 | . 6 . . Lose Combat Pursuer 15 | . 15 . . Influence Decreases 296 | . 50 176 70 Entered New Map 44 | . . 44 . Time Decay 222 | . 50 112 60 Lost Part 30 | . . 20 10 Squads Dispatched 2 | . 2 . . Investigation 1 | . 1 . . Extermination . | . . . . Reinforcement 1 | . 1 . . Assault . | . . . . Garrison . | . . . . Intercept . | . . . . Searches Triggered . | . . . . Construction Impeded . | . . . . Haulers Reinforced . | . . . . Active Scanning Responses . | . . . . Cargo Convoy Interrupts . | . . . . Stealth | -11 -10 -10 -10 --------- Run | Yrd Mat Min Sub Distress Signals . | . . . . Communications Jammed . | . . . . Distress Signals . | . . . . Times Spotted 17 | . 8 4 5 Peak Tracking Total 4 | . 4 2 3 Tactical Retreats 1 | . 1 . . Traps | -11 -10 -10 -10 ------- Run | Yrd Mat Min Sub Traps Triggered . | . . . . Indirectly . | . . . . Trap Hack Attempts . | . . . . Triggered . | . . . . Disarmed . | . . . . Reprogrammed . | . . . . Reused . | . . . . Traps Extracted . | . . . . Installed . | . . . . Triggered . | . . . . Machines | -11 -10 -10 -10 ---------- Run | Yrd Mat Min Sub Machines Disabled . | . . . . Max in Single Turn . | . . . . Machines Repaired . | . . . . Machines Dismantled . | . . . . Machines Sabotaged . | . . . . Overloaded Fab Kills . | . . . . Hacking | -11 -10 -10 -10 --------- Run | Yrd Mat Min Sub Machines Accessed 4 | . 3 . 1 Terminals 3 | . 3 . . Fabricators . | . . . . Repair Stations . | . . . . Recycling Units . | . . . . Scanalyzers . | . . . . Garrison Access . | . . . . Total Hacks 16 | . 11 . 5 Successful 10 | . 5 . 5 Failed 6 | . 6 . . Catastrophic 2 | . 2 . . Database Lockouts . | . . . . Manual 4 | . 4 . . Terminals 11 | . 11 . . Fabricators . | . . . . Repair Stations . | . . . . Recycling Units . | . . . . Scanalyzers . | . . . . Garrison Access . | . . . . Terminal Hacks 10 | . 5 . 5 Record 6 | . 1 . 5 Prototype ID Bank 1 | . 1 . . Branch Access Points 1 | . 1 . . Emergency Access Points 1 | . 1 . . Alert Level 1 | . 1 . . Fabricator Hacks . | . . . . Repair Station Hacks . | . . . . Recycling Unit Hacks . | . . . . Scanalyzer . | . . . . Garrison Access Hacks . | . . . . Unauthorized Hacks . | . . . . Terminals . | . . . . Fabricators . | . . . . Repair Stations . | . . . . Recycling Units . | . . . . Scanalyzers . | . . . . Garrison Access . | . . . . Data Cores Recovered . | . . . . Used . | . . . . Hacking Detections 3 | . 3 . . Full Trace Events 1 | . 1 . . Feedback Events . | . . . . Feedback Blocked . | . . . . Robot Schematics Acquired . | . . . . Robots Built . | . . . . Authchips . | . . . . Time . | . . . . Total Robot Build Rating . | . . . . Part Schematics Acquired . | . . . . Parts Built . | . . . . Authchips . | . . . . Time . | . . . . Total Part Build Rating . | . . . . Parts Repaired . | . . . . Time . | . . . . Parts Recycled . | . . . . Recycled Matter . | . . . . Retrieved Matter . | . . . . Retrieved Components . | . . . . Parts Scanalyzed . | . . . . Part Schematics Acquired . | . . . . Parts Damaged . | . . . . Bothacking | -11 -10 -10 -10 ------------ Run | Yrd Mat Min Sub Used RIF Installer . | . . . . Robots Hacked . | . . . . Non-combat . | . . . . Combat . | . . . . Robot Hacks Applied . | . . . . Relay Couplers Released . | . . . . Fabnet Peak Effective % . | . . . . Robots Rewired . | . . . . Allies Hacked . | . . . . Hacks Repelled . | . . . . Allies | -11 -10 -10 -10 -------- Run | Yrd Mat Min Sub Total Allies . | . . . . Largest Group . | . . . . Highest-Rated Group . | . . . . Highest-Rated Ally . | . . . . Total Orders . | . . . . Ally Attacks . | . . . . Total Damage . | . . . . Kills . | . . . . Allies Corrupted . | . . . . Allies Melted . | . . . . Intel | -11 -10 -10 -10 ------- Run | Yrd Mat Min Sub Active Infowar (turns) 456 | . . 406 50 Structural 456 | . . 406 50 Robot Analysis Total . | . . . . Derelict Logs Recovered 1 | . . 1 . Drone Launches . | . . . . Drone Recoveries . | . . . . Exploration | -11 -10 -10 -10 ------------- Run | Yrd Mat Min Sub Turns Passed 1468 | 44 257 637 530 Spaces Moved 1033 | 30 180 421 402 Core 20 | 4 . . 16 Treads . | . . . . Legs 1013 | 26 180 421 386 Wheels . | . . . . Hover . | . . . . Flight . | . . . . Fastest Speed 50 | 50 120 120 100 Average Speed 120 | 114 120 120 120 Slowest Speed 150 | 120 120 120 150 Overloaded Moves . | . . . . Propulsion Burnouts . | . . . . Robots Hopped . | . . . . Potential Cave-ins . | . . . . Cave-ins Triggered . | . . . . Exploration Rate (%) 46 | 4 47 98 38 Regions Visited 3 Branch Regions 2 Pre-discovered Areas 1 | . . . 1 Known Exits Taken 1 | . 1 . . Unknown Exits Taken 2 | 1 . 1 . Scrap Searched 1 | . . 1 . Spaces Dug . | . . . . Terrain Destroyed . | . . . . Melee . | . . . . Projectile . | . . . . AOE . | . . . . Terrain Rammed . | . . . . Walls Destroyed . | . . . . Machines Disabled . | . . . . Actions | -11 -10 -10 -10 --------- Run | Yrd Mat Min Sub Total 1179 | 37 202 512 428 Wait 74 | . 9 57 8 Move 1030 | 29 179 420 402 Hop . | . . . . Pick Up 6 | 2 2 1 1 Fast Attach 6 | 5 . 1 . Attach 7 | 1 . 2 4 Detach . | . . . . Swap 7 | . . 6 1 Drop 2 | . . 2 . Fire 45 | . 10 23 12 Melee . | . . . . Ram . | . . . . Kick 2 | . 2 . . Crush . | . . . . Escape Stasis . | . . . . Rewire . | . . . . Trap . | . . . . Miscellaneous . | . . . . Route ------- -11/Scrapyard -10/Materials -10/Mines (discovered 3 exits: [*Mat x2] / *Sub) -10/Subcaves (discovered 3 exits: *Mat x2 / Rec) History --------- Turn | Location | Event 11 | -11/Scrapyard | Discovered new exit (range 16) 45 | -11/Scrapyard | Entered Materials 177 | -10/Materials | Identified exit to Mines 302 | -10/Materials | Entered Mines 312 | -10/Mines | Build established: Mutant 494 | -10/Mines | Discovered new exit (range 9) 552 | -10/Mines | Discovered new exit (range 9) 608 | -10/Mines | Learned Materials terminal intel 688 | -10/Mines | Discovered new exit (range 16) 939 | -10/Mines | Entered Subcaves 940 | -10/Subcaves | Approached by a straggling Scientist 977 | -10/Subcaves | Discovered new exit (range 14) 1249 | -10/Subcaves | Visited Clippyterm 1253 | -10/Subcaves | Identified exit to Materials 1253 | -10/Subcaves | Identified exit to Recycling 1253 | -10/Subcaves | Learned location of Deep Caves (-7) 1311 | -10/Subcaves | Build established: Scavenger-Mutant 1389 | -10/Subcaves | Core integrity fell below 50% 1417 | -10/Subcaves | Lost 4 parts (1p1n1u1w) 1462 | -10/Subcaves | Core integrity fell below 20% 1469 | -10/Subcaves | Destroyed by 43-UAE(R) with Subdweller Beam Cannon Last Messages --------------- to the important hacks, and I heartily recommend installing Trojan(Botnet) on at least one or two Terminals to improve your odds of success elsewhere. >>Record! "LU-1G1" It looks like you're researching the legendary digger of dangerously deep tunnels, unfortunately it seems not even members of the Boring Crew know what became of that one. WG-ZG4(c): "I think it's somewhere northwest of here" 01347_ Particle Gun destroyed. 01350_ Ion Engine destroyed. 01362_ Aluminum Leg destroyed. 01379_ Subatomizers dissect the Sub. Optics. 01386_ Imp. Heat Sink destroyed. WG-ZG4(c): "We're getting close, I can feel it." 01420_ DN-QI0(u) tweaks Twisted Machinery. 01431_ DN-QI0(u) builds Twisted Machinery. 01442_ Aluminum Leg destroyed. 01461_ Mining Laser destroyed. 01463_ Lgt. Assault Rifle destroyed. 01467_ Aluminum Leg destroyed. Map ----- +----------------------------------------------------+ | ?????????????????????????????????????????????????? | | ?????????????????????????????????????????????????? | | ?????????????????????????????????????????????????? | | ?????????????????????????????????????????????????? | | ?????????????????????????????????????????????????? | | ?????????????????????????????????????????????????? | | ?????????????????????????????????????????????????? | | ?????????????????????????????????????????????????? | | ?????????????????????????????????????????????????? | | ?????????????????????????????????????????????????? | | ?????????????????????????????????????????????????? | | ?????????????????????????????????????????????????? | | ?????????????????????????????????????????????????? | | ?????????????????????????????????????????????????? | | ?????????????????????????????????????????????????? | | ?????????????????????????????????????????????????? | | ?????????????????????????????????????????????????? | | ?????????????????????????????????????????????????? | | ????????###???????####???????????????????????????? | | ???????## ##???### ##???????""""???????????????? | | ???##### #??# #####???"""#????? ?????????? | | ?### ### """##"##??#""#???? ?????? #??? | | # ## """""""#??# ##?? #?????? ##?? | | """" #### #? ##????? #?? | | ???# """" ## # ### #???## #?? | | ???# ## @ " """"#??## #?? | | ??# ## R R "& "???# #??? | | ????% ## #### #######"""#??? | | ??? ### ## ## ###"## """"""#??? | | ?? ??# "" " "#??? | | ?? ??### # " # #??? | | ?? ###????## # ### ######"## #??? | | ?# #????????######?#### ##???? "### #??? | | ?? ???????????????????# ##????# #?## ##??? | | ??##### ????????????????????###?????## ?## ##### | | ?????? ?????????????????????????????# #?# ## | | ????? ?????????????????????????????? ?## | | ????? ??????????????????????????????? """ | | ?????????????????????????????????????? # #"" | | ??????????????????????????????????????###?######## | | ?????????????????????????????????????????????????? | | ????????>????????????????????????????????????????? | | ?????????????????????????????????????????????????? | | ?????????????????????????????????????????????????? | | ?????????????????????????????????????????????????? | | ?????????????????????????????????????????????????? | | ?????????????????????????????????????????????????? | | ?????????????????????????????????????????????????? | | ?????????????????????????????????????????????????? | | ??????????########???????????????????????????????? | +----------------------------------------------------+ Best States ------------- Heat Dissipation 39 Energy Generation 14 Energy Capacity 250 Matter Stores 300 Matter Capacity 300 Sight Range 16 Terrain Scan Density 10 Evasion (%) 55 Item Schematics ----------------- None Robot Schematics ------------------ None Fabricated ------------ Nothing Repaired ---------- Nothing Alien Tech Used ----------------- None Achievements -------------- None Challenges ------------ None Game ------ Seed ElectrostormTrapPlating Manual? 0 Play Time 00:12:50 Cumulative 21.7 hours Start 2025.05.07 @ 18:06:57 End 2025.05.07 @ 18:25:53 Sessions 1 Manual Loads 0 Difficulty Rogue Special Mode None Game No. 47 Rogue 47 Adventurer 0 Explorer 0 Win Type - Total 1 Types 1/0/0/0/0/0/0/0/0/0 Lore% 23 Gallery% 31 Achievement% 33 Wizard Run 0 Options --------- Layout 0 ASCII 0 Keyboard 0 Movement Mouse Keybinds 0 Fullscreen 1 Font 18/SmallcapsGlow Map View 76x50 Zoom Use 0% Tactical HUD 1 Map Filters NONE Filters NONE Steam 1 RUN: 25229cba-7470-4023-8289-d36bd48ce6e4